fUSD/lending_fUSD_20250426
["ID","MTS","AMOUNT","RATE_DAILY","PERIOD"]
[359076256,1745695850446,-400.0,0.00019866,2]
[359076257,1745695850456,-400.0,0.00019866,2]
[359076258,1745695850467,-400.0,0.00019866,2]
[359076259,1745695850477,-400.0,0.00019866,2]
[359076260,1745695850487,-796.57,0.00019866,2]
[359076261,1745695850497,-678.17,0.00019866,2]
[359076262,1745695850507,-602.54,0.00019866,2]
[359076263,1745695850516,-300.0,0.00019866,2]
[359076264,1745695850526,-400.0,0.00019866,2]
[359076265,1745695850535,-400.0,0.00019866,2]
[359076266,1745695850545,-734.47,0.00019866,2]
[359076267,1745695850555,-561.83,0.00019866,2]
[359076268,1745695850564,-603.53,0.00019866,2]
[359076269,1745695850573,-400.0,0.00019866,2]
[359076270,1745695850583,-400.0,0.00019866,2]
[359076271,1745695850592,-413.01,0.00019866,2]
[359076272,1745695850602,-450.28,0.00019866,2]
[359076273,1745695850612,-400.0,0.00019866,2]
[359076274,1745695850621,-446.68,0.00019866,2]
[359076275,1745695850631,-782.15,0.00019866,2]
[359076276,1745695850642,-656.94,0.00019866,2]
[359076277,1745695850653,-400.0,0.00019866,2]
[359076278,1745695850663,-400.0,0.00019866,2]
[359076279,1745695850674,-723.28,0.00019866,2]
[359076280,1745695850684,-3505.07,0.00019866,2]
[359076281,1745695850694,-425.0,0.00019866,2]
[359076282,1745695850704,-400.0,0.00019866,2]
[359076283,1745695850714,-400.0,0.00019866,2]
[359076284,1745695850725,-400.0,0.00019866,2]
[359076285,1745695850735,-680.36,0.00019866,2]
[359076286,1745695850744,-577.48,0.00019866,2]
[359076287,1745695850754,-400.0,0.00019866,2]
[359076288,1745695850764,-400.0,0.00019866,2]
[359076289,1745695850773,-468.90406809,0.00019866,2]
[359076290,1745695850783,-400.0,0.00019866,2]
[359076291,1745695850793,-400.0,0.00019866,2]
[359076292,1745695850803,-400.0,0.00019866,2]
[359076293,1745695850813,-400.0,0.00019866,2]
[359076294,1745695850823,-744.59,0.00019866,2]
[359076295,1745695850834,-400.0,0.00019866,2]
[359076296,1745695850845,-400.0,0.00019866,2]
[359076297,1745695850855,-527.45,0.00019866,2]
[359076298,1745695850866,-400.0,0.00019866,2]
[359076299,1745695850877,-400.0,0.00019866,2]
[359076300,1745695850891,-400.0,0.00019866,2]
[359076301,1745695850901,-366.50790611,0.00019866,2]
[359076302,1745695850911,-400.0,0.00019866,2]
[359076303,1745695850921,-400.0,0.00019866,2]
[359076304,1745695850931,-400.0,0.00019866,2]
[359076305,1745695850942,-659.51,0.00019866,2]
[359076306,1745695850953,-400.0,0.00019866,2]
[359076307,1745695850963,-499.89,0.00019866,2]
[359076308,1745695850974,-400.0,0.00019866,2]
[359076309,1745695850985,-400.0,0.00019866,2]
[359076310,1745695850994,-501.27,0.00019866,2]
[359076311,1745695851005,-400.0,0.00019866,2]
[359076312,1745695851016,-400.0,0.00019866,2]
[359076313,1745695851026,-400.0,0.00019866,2]
[359076314,1745695851036,-400.0,0.00019866,2]
[359076315,1745695851046,-400.0,0.00019866,2]
[359076316,1745695851056,-613.05,0.00019866,2]
[359076317,1745695851066,-400.0,0.00019866,2]
[359076318,1745695851077,-400.0,0.00019866,2]
[359076319,1745695851086,-400.0,0.00019866,2]
[359076320,1745695851096,-400.0,0.00019866,2]
[359076321,1745695851106,-400.0,0.00019866,2]
[359076322,1745695851116,-400.0,0.00019866,2]
[359076323,1745695851126,-884.35,0.00019866,2]
[359076324,1745695851137,-400.0,0.00019866,2]
[359076325,1745695851147,-417.47,0.00019866,2]
[359076326,1745695851157,-508.94,0.00019866,2]
[359076327,1745695851166,-400.0,0.00019866,2]
[359076328,1745695851176,-300.0,0.00019866,2]
[359076329,1745695851187,-400.0,0.00019866,2]
[359076330,1745695851196,-743.65,0.00019866,2]
[359076331,1745695851206,-831.09,0.00019866,2]
[359076332,1745695851217,-400.0,0.00019866,2]
[359076333,1745695851230,-568.98,0.00019866,2]
[359076334,1745695851239,-400.0,0.00019866,2]
[359076335,1745695851251,-400.0,0.00019866,2]
[359076336,1745695851260,-422.23,0.00019866,2]
[359076337,1745695851270,-400.0,0.00019866,2]
[359076338,1745695851280,-400.0,0.00019866,2]
[359076339,1745695851290,-400.0,0.00019866,2]
[359076340,1745695851299,-400.0,0.00019866,2]
[359076341,1745695851309,-254.16453316,0.00019866,2]
[359076342,1745695851319,-522.95,0.00019866,2]
[359076343,1745695851328,-464.06,0.00019866,2]
[359076344,1745695851338,-400.0,0.00019866,2]
[359076345,1745695851347,-400.0,0.00019866,2]
[359076346,1745695851358,-400.0,0.00019866,2]
[359076347,1745695851368,-4526.21,0.00019866,2]
[359076348,1745695851377,-857.82,0.00019866,2]
[359076349,1745695851389,-400.0,0.00019866,2]
[359076350,1745695851399,-788.6,0.00019866,2]
[359076351,1745695851410,-400.0,0.00019866,2]
[359076352,1745695851420,-400.0,0.00019866,2]
[359076353,1745695851430,-632.03,0.00019866,2]
[359076354,1745695851442,-440.16,0.00019866,2]
[359076355,1745695851451,-871.71,0.00019866,2]
[359076356,1745695851463,-454.59,0.00019866,2]
[359076357,1745695851474,-400.0,0.00019866,2]
[359076358,1745695851485,-400.0,0.00019866,2]
[359076359,1745695851496,-715.29,0.00019866,2]
[359076360,1745695851506,-873.06,0.00019866,2]
[359076361,1745695851517,-400.0,0.00019866,2]
[359076362,1745695851527,-548.25,0.00019866,2]
[359076363,1745695851537,-300.0,0.00019866,2]
[359076364,1745695851546,-687.98,0.00019866,2]
[359076365,1745695851555,-983.19,0.00019866,2]
[359076366,1745695851566,-400.0,0.00019866,2]
[359076367,1745695851575,-400.0,0.00019866,2]
[359076368,1745695851586,-416.58,0.00019866,2]
[359076369,1745695851595,-400.0,0.00019866,2]
[359076370,1745695851606,-400.0,0.00019866,2]
[359076371,1745695851616,-400.0,0.00019866,2]
[359076372,1745695851626,-4067.32,0.00019866,2]
[359076373,1745695851636,-693.67,0.00019866,2]
[359076374,1745695851646,-402.54,0.00019866,2]
[359076375,1745695851657,-791.64,0.00019866,2]
[359076376,1745695851667,-427.28,0.00019866,2]
[359076377,1745695851678,-584.82,0.00019866,2]
[359076378,1745695851687,-400.0,0.00019866,2]
[359076379,1745695851698,-400.0,0.00019866,2]
[359076380,1745695851709,-400.0,0.00019866,2]
[359076381,1745695851720,-400.0,0.00019866,2]
[359076382,1745695851730,-400.0,0.00019866,2]
[359076383,1745695851740,-1055.81,0.00019866,2]
[359076384,1745695851750,-425.49,0.00019866,2]
[359076385,1745695851759,-400.0,0.00019866,2]
[359076386,1745695851769,-500.0,0.00019866,2]
[359076387,1745695851779,-400.0,0.00019866,2]
[359076388,1745695851789,-595.73,0.00019866,2]
[359076389,1745695851799,-255.51555735,0.00019866,2]
[359076390,1745695851809,-400.0,0.00019866,2]
[359076391,1745695851820,-445.81,0.00019866,2]
[359076392,1745695851829,-400.0,0.00019866,2]
[359076393,1745695851839,-200.0,0.00019866,2]
[359076394,1745695851849,-684.95,0.00019866,2]
[359076395,1745695851859,-451.33,0.00019866,2]
[359076396,1745695851869,-461.2,0.00019866,2]
[359076397,1745695851879,-400.0,0.00019866,2]
[359076398,1745695851892,-400.0,0.00019866,2]
[359076399,1745695851902,-400.0,0.00019866,2]
[359076400,1745695851912,-441.36,0.00019866,2]
[359076401,1745695851922,-400.0,0.00019866,2]
[359076402,1745695851932,-698.45,0.00019866,2]
[359076403,1745695851943,-400.0,0.00019866,2]
[359076404,1745695851952,-400.0,0.00019866,2]
[359076405,1745695851963,-400.0,0.00019866,2]
[359076406,1745695851974,-702.15,0.00019866,2]
[359076407,1745695851984,-866.21,0.00019866,2]
[359076408,1745695851993,-700.25,0.00019866,2]
[359076409,1745695852003,-400.0,0.00019866,2]
[359076410,1745695852013,-251.12140388,0.00019866,2]
[359076411,1745695852022,-400.0,0.00019866,2]
[359076412,1745695852033,-550.68,0.00019866,2]
[359076413,1745695852042,-400.65,0.00019866,2]
[359076414,1745695852052,-400.0,0.00019866,2]
[359076415,1745695852062,-400.0,0.00019866,2]
[359076416,1745695852072,-548.82,0.00019866,2]
[359076417,1745695852082,-839.27,0.00019866,2]
[359076418,1745695852092,-400.0,0.00019866,2]
[359076419,1745695852101,-400.0,0.00019866,2]
[359076420,1745695852110,-506.77,0.00019866,2]
[359076421,1745695852120,-513.1284529,0.00019866,2]
[359076422,1745695852129,-400.0,0.00019866,2]
[359076423,1745695852139,-558.44,0.00019866,2]
[359076424,1745695852239,-400.0,0.00019866,2]
[359076425,1745695852250,-400.0,0.00019866,2]
[359076426,1745695852260,-437.63,0.00019866,2]
[359076427,1745695852270,-200.0,0.00019866,2]
[359076428,1745695852281,-200.0,0.00019866,2]
[359076429,1745695852291,-400.0,0.00019866,2]
[359076430,1745695852300,-400.0,0.00019866,2]
[359076431,1745695852309,-651.16,0.00019866,2]
[359076432,1745695852319,-1190.26,0.00019866,2]
[359076433,1745695852330,-2029.0,0.00019867,2]
[359076434,1745695852340,-355.65169183,0.00019867,2]
[359076435,1745695852351,-500.0,0.00019867,2]
[359076436,1745695852361,-400.0,0.00019867,2]
[359076437,1745695852371,-400.0,0.00019867,2]
[359076438,1745695852380,-415.08,0.00019867,2]
[359076439,1745695852390,-633.3,0.00019867,2]
[359076440,1745695852400,-411.42,0.00019867,2]
[359076441,1745695852410,-517.84,0.00019867,2]
[359076442,1745695852420,-400.0,0.00019867,2]
[359076443,1745695852429,-400.0,0.00019867,2]
[359076444,1745695852439,-400.0,0.00019867,2]
[359076445,1745695852449,-400.0,0.00019867,2]
[359076446,1745695852459,-400.0,0.00019867,2]
[359076447,1745695852469,-495.50869001,0.00019867,2]
[359076448,1745695852479,-469.66,0.00019867,2]
[359076449,1745695852490,-400.0,0.00019867,2]
[359076450,1745695852500,-754.49,0.00019867,2]
[359076451,1745695852510,-689.77,0.00019867,2]
[359076452,1745695852520,-400.0,0.00019867,2]
[359076453,1745695852529,-435.06,0.00019867,2]
[359076454,1745695852539,-400.0,0.00019867,2]
[359076455,1745695852548,-400.0,0.00019867,2]
[359076456,1745695852557,-400.0,0.00019867,2]
[359076457,1745695852567,-451.96,0.00019867,2]
[359076458,1745695852576,-400.0,0.00019867,2]
[359076459,1745695852585,-400.0,0.00019867,2]
[359076460,1745695852595,-400.0,0.00019867,2]
[359076461,1745695852605,-400.0,0.00019867,2]
[359076462,1745695852615,-427.9,0.00019867,2]
[359076463,1745695852624,-400.0,0.00019867,2]
[359076464,1745695852633,-400.0,0.00019867,2]
[359076465,1745695852643,-300.0,0.00019867,2]
[359076466,1745695852652,-560.08,0.00019867,2]
[359076467,1745695852661,-573.56,0.00019867,2]
[359076468,1745695852670,-400.0,0.00019867,2]
[359076469,1745695852681,-400.0,0.00019867,2]
[359076470,1745695852691,-400.0,0.00019867,2]
[359076471,1745695852700,-400.0,0.00019867,2]
[359076472,1745695852709,-415.98,0.00019867,2]
[359076473,1745695852719,-400.0,0.00019867,2]
[359076474,1745695852728,-770.98,0.00019867,2]
[359076475,1745695852737,-400.0,0.00019867,2]
[359076476,1745695852746,-400.0,0.00019867,2]
[359076477,1745695852755,-855.58,0.00019867,2]
[359076478,1745695852764,-400.0,0.00019867,2]
[359076479,1745695852773,-400.0,0.00019867,2]
[359076480,1745695852783,-400.0,0.00019867,2]
[359076481,1745695852792,-400.0,0.00019867,2]
[359076482,1745695852801,-400.0,0.00019867,2]
[359076483,1745695852810,-400.0,0.00019867,2]
[359076484,1745695852819,-400.0,0.00019867,2]
[359076485,1745695852829,-400.0,0.00019867,2]
[359076486,1745695852838,-664.99,0.00019867,2]
[359076487,1745695852848,-400.0,0.00019867,2]
[359076488,1745695852857,-400.0,0.00019867,2]
[359076489,1745695852867,-400.0,0.00019867,2]
[359076490,1745695852877,-400.0,0.00019867,2]
[359076491,1745695852886,-400.0,0.00019867,2]
[359076492,1745695852896,-727.48,0.00019867,2]
[359076493,1745695852905,-500.0,0.00019867,2]
[359076494,1745695852915,-400.0,0.00019867,2]
[359076495,1745695852925,-586.98,0.00019867,2]
[359076496,1745695852934,-400.0,0.00019867,2]
[359076497,1745695852945,-400.0,0.00019867,2]
[359076498,1745695852955,-648.05,0.00019867,2]
[359076499,1745695852965,-512.4,0.00019867,2]
[359076500,1745695852976,-400.0,0.00019867,2]
[359076501,1745695852986,-400.0,0.00019867,2]
[359076502,1745695852996,-400.0,0.00019867,2]
[359076503,1745695853006,-400.0,0.00019867,2]
[359076504,1745695853016,-400.0,0.00019867,2]
[359076505,1745695853026,-400.0,0.00019867,2]
[359076506,1745695853036,-766.44,0.00019867,2]
[359076507,1745695853045,-400.0,0.00019867,2]
[359076508,1745695853056,-468.07,0.00019867,2]
[359076509,1745695853066,-400.0,0.00019867,2]
[359076510,1745695853077,-400.0,0.00019867,2]
[359076511,1745695853087,-897.21,0.00019867,2]
[359076512,1745695853097,-400.0,0.00019867,2]
[359076513,1745695853107,-400.0,0.00019867,2]
[359076514,1745695853119,-977.98,0.00019867,2]
[359076515,1745695853128,-621.67,0.00019867,2]
[359076516,1745695853138,-980.74,0.00019867,2]
[359076517,1745695853148,-764.53,0.00019867,2]
[359076518,1745695853157,-500.0,0.00019868,2]
[359076519,1745695853167,-500.0,0.00019868,2]
[359076520,1745695853176,-500.0,0.00019868,2]
[359076521,1745695853186,-500.0,0.00019869,2]
[359076522,1745695853196,-730.28498937,0.0001987,2]
[359076523,1745695853205,-500.0,0.00019873,2]
[359076524,1745695853215,-511.00318909,0.00019873,2]
[359076525,1745695853224,-500.0,0.00019873,2]
[359076526,1745695853234,-500.0,0.00019873,2]
[359076527,1745695853243,-500.0,0.00019873,2]
[359076528,1745695853253,-500.0,0.00019873,2]
[359076529,1745695853262,-500.0,0.00019873,2]
[359076530,1745695853272,-160.11472219,0.00019873,2]
[359076531,1745695853282,-514.7327358,0.00019873,2]
[359076532,1745695853292,-500.0,0.00019873,2]
[359076533,1745695853301,-500.0,0.00019873,2]
[359076534,1745695853310,-500.0,0.00019873,2]
[359076535,1745695853320,-500.0,0.00019873,2]
[359076536,1745695853330,-153.24179358,0.00019873,2]
[359076537,1745695853340,-500.0,0.00019873,2]
[359076538,1745695853351,-500.0,0.00019873,2]
[359076539,1745695853361,-505.51795203,0.00019873,2]
[359076540,1745695853371,-500.0,0.00019873,2]
[359076541,1745695853381,-500.0,0.00019873,2]
[359076542,1745695853391,-500.0,0.00019873,2]
[359076543,1745695853401,-500.0,0.00019873,2]
[359076544,1745695853411,-174.53826606,0.00019873,2]
[359076545,1745695853420,-500.0,0.00019873,2]
[359076546,1745695853430,-500.0,0.00019873,2]
[359076547,1745695853440,-2029.0,0.00019894,2]
[359076548,1745695853449,-589.28931,0.00019894,2]
[359076549,1745695853460,-2280.75683068,0.00019896,2]
[359076550,1745695853470,-3170.863,0.00019899,2]
[359076551,1745695853480,-174.452,0.00019899,2]
[359076552,1745695853489,-500.0,0.00019899,2]
[359076553,1745695853499,-4385.74016815,0.000199,2]
[359076554,1745695853508,-334.31970383,0.000199,2]
[359076555,1745695853518,-181.63578013,0.000199,2]
[359076556,1745695853527,-4983.09173191,0.000199,2]
[359076557,1745695853537,-2128.76930663,0.000199,2]
[359076558,1745695853547,-86488.4,0.000199,2]
[359076559,1745695853557,-340.58983662,0.000199,2]
[359076560,1745695853566,-3210.12243023,0.000199,2]
[359076561,1745695853575,-3583.31365397,0.000199,2]
[359076562,1745695853585,-168.56609644,0.000199,2]
[359076563,1745695853594,-2029.0,0.00019922,2]
[359076564,1745695853604,-500.0,0.00019945,2]
[359076565,1745695853615,-2029.0,0.00019949,2]
[359076566,1745695853624,-2063.0,0.00019965,2]
[359076567,1745695853634,-1446.0,0.00019965,2]
[359076568,1745695853644,-548.0,0.00019965,2]
[359076569,1745695853653,-911.0,0.00019965,2]
[359076570,1745695853663,-579.0,0.00019965,2]
[359076571,1745695853673,-1135.0,0.00019965,2]
[359076572,1745695853682,-6193.0,0.00019965,2]
[359076573,1745695853692,-201.859,0.00019965,2]
[359076574,1745695853703,-257.141,0.00019965,2]
[359076575,1745695853713,-1336.0,0.00019965,2]
[359076576,1745695853725,-521.326708,0.0001997,2]
[359076577,1745695853735,-549.428371,0.0001997,2]
[359076578,1745695853745,-521.326708,0.00019971,2]
[359076579,1745695853756,-549.428371,0.00019971,2]
[359076580,1745695853765,-500.0,0.00019972,2]
[359076581,1745695853775,-1350.8,0.00019972,2]
[359076582,1745695853786,-1350.8,0.00019972,2]
[359076583,1745695853796,-1350.8,0.00019972,2]
[359076584,1745695853806,-1350.8,0.00019972,2]
[359076585,1745695853816,-1350.8,0.00019972,2]
[359076586,1745695853826,-1350.8,0.00019972,2]
[359076587,1745695853837,-1350.8,0.00019972,2]
[359076588,1745695853847,-1350.8,0.00019972,2]
[359076589,1745695853858,-1350.8,0.00019972,2]
[359076590,1745695853868,-1350.8,0.00019972,2]
[359076591,1745695853878,-1350.8,0.00019972,2]
[359076592,1745695853890,-1350.8,0.00019972,2]
[359076593,1745695853903,-1350.8,0.00019972,2]
[359076594,1745695853914,-1350.8,0.00019972,2]
[359076595,1745695853924,-1350.8,0.00019972,2]
[359076596,1745695853935,-1350.8,0.00019972,2]
[359076597,1745695853945,-1350.8,0.00019972,2]
[359076598,1745695853955,-1350.8,0.00019972,2]
[359076599,1745695853965,-1350.8,0.00019972,2]
[359076600,1745695853975,-1350.8,0.00019972,2]
[359076601,1745695853985,-1350.8,0.00019972,2]
[359076602,1745695853995,-1350.8,0.00019972,2]
[359076603,1745695854006,-1350.8,0.00019972,2]
[359076604,1745695854015,-1350.91423895,0.00019972,2]
[359076605,1745695854024,-39053.0,0.00019973,2]
[359076606,1745695854034,-500.0,0.00019973,2]
[359076607,1745695854044,-500.0,0.00019973,2]
[359076608,1745695854053,-500.0,0.00019973,2]
[359076609,1745695854063,-2029.0,0.00019977,2]
[359076610,1745695854073,-400.0,0.00019985,2]
[359076611,1745695854083,-400.0,0.00019985,2]
[359076612,1745695854093,-400.0,0.00019985,2]
[359076613,1745695854104,-500.0,0.00019985,2]
[359076614,1745695854115,-521.326708,0.00019985,2]
[359076615,1745695854125,-549.428371,0.00019985,2]
[359076616,1745695854135,-577.64,0.00019985,2]
[359076617,1745695854146,-67168.1293997,0.00019986,2]
[359076618,1745695854155,-23916.6043847,0.00019986,2]
[359076619,1745695854166,-7163.6791823,0.00019986,2]
[359076620,1745695854177,-68431.0180614,0.00019986,2]
[359076621,1745695854188,-359.07922638,0.0001999,2]
[359076622,1745695854199,-359.07922638,0.0001999,2]
[359076623,1745695854210,-727.71783335,0.00019999,2]
[359076624,1745695854220,-500.0,0.00019999,2]
[359076625,1745695854232,-300.0,0.00019999,2]
[359076626,1745695854243,-500.0,0.00019999,2]
[359076627,1745695854253,-300.0,0.00019999,2]
[359076628,1745695854263,-300.0,0.00019999,2]
[359076629,1745695854272,-500.0,0.00019999,2]
[359076630,1745695854282,-500.0,0.00019999,2]
[359076631,1745695854291,-500.0,0.00019999,2]
[359076632,1745695854302,-500.0,0.00019999,2]
[359076633,1745695854312,-445.25921698,0.00019999,2]
[359076634,1745695854323,-500.0,0.00019999,2]
[359076635,1745695854336,-500.0,0.00019999,2]
[359076636,1745695854347,-500.0,0.00019999,2]
[359076637,1745695854358,-500.0,0.00019999,2]
[359076638,1745695854369,-500.0,0.00019999,2]
[359076639,1745695854378,-500.0,0.00019999,2]
[359076640,1745695854388,-500.0,0.00019999,2]
[359076641,1745695854397,-500.0,0.00019999,2]
[359076642,1745695854407,-500.0,0.00019999,2]
[359076643,1745695854416,-500.0,0.00019999,2]
[359076644,1745695854425,-500.0,0.00019999,2]
[359076645,1745695854435,-500.0,0.00019999,2]
[359076646,1745695854444,-500.0,0.00019999,2]
[359076647,1745695854454,-500.0,0.00019999,2]
[359076648,1745695854463,-320.30618555,0.00019999,2]
[359076649,1745695854473,-231.5730995,0.00019999,2]
[359076650,1745695854483,-284866.46436017,0.0002,2]
[359076651,1745695854511,-5715.12740809,0.0002,2]
[359076652,1745695855248,-400.0,0.00019591,2]
[359076653,1745695855260,-400.0,0.00019592,2]
[359076654,1745695855271,-834.36404406,0.00019855,2]
[359076655,1745695855282,-385.97,0.00019866,2]
[359076656,1745695855292,-359587.58995016,0.0002,2]
[359076657,1745695855302,-572813.61100568,0.0002,2]
[359076658,1745695855314,-529.13139244,0.0002,2]
[359076659,1745695856295,-472.7606,0.00019492,2]
[359076660,1745695856307,-151.0,0.00019695,2]
[359076661,1745695856319,-151.0,0.00019695,2]
[359076662,1745695856330,-377.00921993,0.0002,2]
[359076663,1745695856346,-335.25777896,0.0002,2]
[359076664,1745695856404,-17999.81365759,0.0002,2]
[359076665,1745695856420,-883991.65366681,0.0002,2]
[359076666,1745695856432,-8064.46457219,0.0002,2]
[359076667,1745695856444,-1885.51248912,0.0002,2]
[359076668,1745695856464,-13179.96792869,0.0002,2]
[359076669,1745695861353,1795.31087763,0.00019999,5]
[359076670,1745695908412,11633.8,0.00019033,2]
[359076671,1745695918791,-226.4037,0.00019491,2]
[359076672,1745695961340,-197.65509821,0.00019491,2]
[359076673,1745695982962,-189.32,0.0001947,2]
[359076674,1745696064688,854.57,0.00018921,2]
[359076675,1745696065390,-313.79369379,0.00019491,2]
[359076676,1745696116946,180.9,0.00018858,2]
[359076677,1745696152455,552.45,0.00018756,2]
[359076678,1745696291327,-241.01131161,0.00019391,2]
[359076679,1745696311691,241.011312,0.00019294,2]
[359076680,1745696333134,153.63,0.00018675,2]
[359076681,1745696403841,-5.92310026,0.00019391,2]
[359076682,1745696403865,-157.09942164,0.00019441,2]
[359076683,1745696455213,150.0,0.00018645,7]
[359076684,1745696542157,-163.022522,0.00019344,2]
[359076685,1745696565630,612.8,0.00016744,2]
[359076686,1745696565813,612.8,0.00019008,2]
[359076687,1745696567781,-42.90057836,0.00019441,2]
[359076688,1745696567805,-124.33348455,0.00019471,2]
[359076689,1745696606071,1000.0,0.00018652,2]
[359076690,1745696695802,250.0,0.00017,2]
[359076691,1745696696867,300.0,0.00019,2]
[359076692,1745696757664,154.71,0.00019159,2]
[359076693,1745696808119,651.27,0.00018608,2]
[359076702,1745696855771,877.58,0.00018603,2]
[359076711,1745697003814,2000.0,0.0002,4]
[359076716,1745697031870,-200.0,0.00019481,2]
[359076718,1745697031881,-200.0,0.00019485,2]
[359076719,1745697031893,-300.0,0.00019489,2]
[359076721,1745697031903,-1200.0,0.00019489,2]
[359076723,1745697031913,-300.0,0.00019489,2]
[359076724,1745697031925,-632.81121136,0.00019489,2]
[359076725,1745697031935,-5161.95681045,0.0001949,2]
[359076726,1745697031947,-1469.379208,0.00019491,2]
[359076727,1745697031957,-534.5893,0.00019491,2]
[359076729,1745697031968,-265.9975,0.00019491,2]
[359076732,1745697031979,-767.157,0.00019491,2]
[359076734,1745697031990,-935.9673,0.00019492,2]
[359076736,1745697032000,-850.0,0.00019498,2]
[359076739,1745697032010,-500.0,0.00019498,2]
[359076741,1745697032021,-217.00832664,0.00019498,2]
[359076743,1745697032031,-500.0,0.00019498,2]
[359076745,1745697032041,-500.0,0.00019498,2]
[359076747,1745697032051,-500.0,0.00019498,2]
[359076749,1745697032061,-1000.0,0.000195,2]
[359076751,1745697032072,-1000.0,0.000195,2]
[359076752,1745697032082,-1000.0,0.000195,2]
[359076753,1745697032092,-1000.0,0.000195,2]
[359076754,1745697032102,-1000.0,0.000195,2]
[359076755,1745697032112,-1000.0,0.000195,2]
[359076756,1745697032122,-1029.0,0.000195,2]
[359076757,1745697032132,-1000.0,0.000195,2]
[359076758,1745697032143,-1016.0,0.000195,2]
[359076759,1745697032154,-250.0,0.00019501,2]
[359076760,1745697032164,-727.71783335,0.00019535,2]
[359076761,1745697032176,-5161.95681036,0.00019536,2]
[359076762,1745697032186,-500.0,0.00019573,2]
[359076763,1745697032197,-500.0,0.00019573,2]
[359076764,1745697032208,-662.13078995,0.00019573,2]
[359076765,1745697032218,-207.4,0.00019578,2]
[359076766,1745697032229,-5161.95681036,0.00019581,2]
[359076767,1745697032240,-4849.63169898,0.00019588,2]
[359076768,1745697032250,-550.80316665,0.00019588,2]
[359076769,1745697032260,-400.0,0.00019589,2]
[359076770,1745697032271,-245.2074623,0.00019589,2]
[359076771,1745697032281,-400.0,0.00019589,2]
[359076772,1745697032291,-400.0,0.00019589,2]
[359076773,1745697032302,-400.0,0.00019589,2]
[359076774,1745697032313,-400.0,0.00019589,2]
[359076775,1745697032323,-400.0,0.00019589,2]
[359076776,1745697032333,-768.31,0.00019589,2]
[359076777,1745697032343,-400.0,0.00019589,2]
[359076778,1745697032354,-566.52,0.00019589,2]
[359076779,1745697032363,-400.0,0.00019589,2]
[359076780,1745697032373,-400.0,0.00019589,2]
[359076781,1745697032384,-305.98655181,0.00019589,2]
[359076782,1745697032394,-400.0,0.00019589,2]
[359076783,1745697032404,-400.0,0.00019589,2]
[359076784,1745697032414,-654.12,0.00019589,2]
[359076785,1745697032424,-400.0,0.00019589,2]
[359076786,1745697032435,-400.0,0.00019589,2]
[359076787,1745697032445,-451.81,0.00019589,2]
[359076788,1745697032454,-8633.568696,0.00019589,2]
[359076789,1745697032469,-400.0,0.00019589,2]
[359076790,1745697032479,-385.9230261,0.00019589,2]
[359076791,1745697032489,-400.0,0.00019589,2]